Cogmind - Beta 16 @@@ ROGUE MODE // 2025.11.05 @ 20:44:47 Player: Ghraemdal Result: Destroyed by S5-EZ4(R) with Subdweller Beam Cannon Performance ------------- Evolutions (0) 0 Regions Visited (1) 200 Robots Destroyed (15) 75 Value Destroyed (318) 318 Prototype IDs (0) 0 Alien Tech Used (0) 0 Bonus (0) 0 TOTAL SCORE: 593 Bonus ------- None Cogmind --------- Core Integrity 0/250 Matter 271/300 Energy 99/100 System Corruption 0% Temperature Cool (9) Movement Core (50) Location -10/Materials Parts ------- > --- POWER (1) -------- (None) > --- PROPULSION (2) --- (None) > --- UTILITY (2) ------ (None) > --- WEAPON (2) ------- (None) > --- INVENTORY (5) ---- Ion Engine High-capacity Storage Unit Heavy EM Pulse Gun EM Shotgun Mining Laser Peak State ------------ > --- POWER ------------ Ion Engine > --- PROPULSION ------- Wheel Compact Wheel > --- UTILITY ---------- Small Storage Unit Seismic Detector > --- WEAPON ----------- Heavy EM Pulse Gun EM Shotgun > --- INVENTORY -------- Ion Engine Light Treads Aluminum Leg Aluminum Leg Small Storage Unit Small Laser Grenade Launcher [Rating: 9] Favorites ----------- Power Ion Engine Engine Ion Engine Propulsion Compact Wheel Wheel Compact Wheel Utility Small Storage Unit Device Seismic Detector Storage Small Storage Unit Weapon Mining Claw Energy Gun Small Laser Ballistic Gun Light Assault Rifle Launcher Grenade Launcher Special Weapon Mining Laser Slashing Weapon Mining Claw Build | -11 -10 ------- Run | Yrd Mat Slots Evolved . | . . Power . | . . Propulsion . | . . Utility . | . . Weapon . | . . Parts Attached 17 | 8 9 Power 1 | 1 . Engine 1 | 1 . Core . | . . Reactor . | . . Propulsion 3 | 2 1 Treads . | . . Leg . | . . Wheel 3 | 2 1 Hover . | . . Flight . | . . Utility 4 | 2 2 Device 2 | 1 1 Storage 2 | 1 1 Processor . | . . Hackware . | . . Protection . | . . Artifact . | . . Weapon 9 | 3 6 Energy Gun 4 | 2 2 Energy Cannon . | . . Ballistic Gun 1 | 1 . Ballistic Cannon . | . . Launcher 1 | . 1 Special Weapon 1 | . 1 Impact Weapon . | . . Slashing Weapon 2 | . 2 Piercing Weapon . | . . Special Melee Weapon . | . . Unidentified Prototypes . | . . Parts Lost 6 | . 6 Power 1 | . 1 Propulsion 2 | . 2 Utility 1 | . 1 Weapon 2 | . 2 Highest Loss Streak 3 | . 3 To Critical Strikes . | . . Average Backups 6 | 2 7 Power . | . 1 Propulsion 2 | 1 2 Utility 1 | . 1 Weapon 2 | . 2 Tool/Special . | . . Unused Backups 10 | . 10 Power 1 | . 1 Propulsion 3 | . 3 Utility 4 | . 4 Weapon 2 | . 2 Tool/Special . | . . Average Slot Usage (%) 98 | . 98 Engine 14 | . 14 Wheel 28 | . 28 Device 12 | . 12 Storage 14 | . 14 Energy Gun 9 | . 9 Ballistic Gun 4 | . 4 Launcher 3 | . 3 Slashing Weapon 9 | . 9 Peak Build Rating 9 | 7 9 Average Rating 7 | 4 7 On Entrance 3 | . 7 Avg Prop Armor Cover (%) . | . . Naked Turns 2 | . 2 Heaviest Build 50 | 13 50 Greatest Support 32 | 26 32 Greatest Overweight (x) 1 | . 1 Average Overweight (x) . | . . Largest Inventory Capacity 20 | 8 20 Average Capacity 8 | 7 9 Most Carried 9 | 6 9 Average Carried 6 | 2 7 Final Capacity 8 | 8 5 Final Carried 6 | 6 5 Class Distribution -------------------- 100% | Mutant Dominant Class ---------------- Mutant | -10/Materials Resources | -11 -10 ----------- Run | Yrd Mat Matter Collected 410 | 281 129 Remotely . | . . Salvage Created 402 | 112 290 Parts 28 | 6 22 Haulers Intercepted . | . . Recyclers Shooed . | . . Parts Field Recycled . | . . Retrieved Matter . | . . Parts Self-Destructed . | . . Prevented . | . . Parts Restored . | . . Kills | -11 -10 ------- Run | Yrd Mat Combat Hostiles Destroyed 11 | . 11 Guns 4 | . 4 AOE 7 | . 7 Classes Destroyed 5 | 2 3 Tunneler 1 | 1 . Recycler 1 | 1 . Watcher 2 | . 2 Swarmer 6 | . 6 Grunt 5 | . 5 Best Kill Streak 3 | 2 3 Combat Bots Only 3 | . 3 Max Kills in Single Turn 3 | 1 3 Gunslinging . | . . Exploded 3 | . 3 Melee . | . . Uniques/NPCs Destroyed . | . . Combat | -11 -10 -------- Run | Yrd Mat Hostile Shots Fired 42 | . 42 Missed 11 | . 11 Hits 31 | . 31 Projectile 31 | . 31 AOE 5 | . 5 Damage Taken 671 | . 671 Core 275 | . 275 Absorbed by Shields . | . . Core Remaining (%) 100 | 100 . Volleys Fired 31 | 8 23 Largest 2 | 2 2 Hottest 90 | 60 90 Shots Fired 54 | 9 45 Gun 48 | 9 39 Cannon . | . . Launcher 6 | . 6 Special . | . . Kinetic 14 | 1 13 Thermal 14 | 8 6 Explosive 6 | . 6 Electromagnetic 20 | . 20 Robot Hit Streak 10 | 3 10 Robot Miss Streak 3 | 1 3 Penetration Max . | . . Secondary Targets 1 | . 1 Max Gunslinging Chain 1 | . 1 Shots Hit Robots 36 | 6 30 Core Hits 23 | 3 20 Critical Kills . | . . Critical Parts Destroyed . | . . Critical Strikes 2 | . 2 Corrupt 2 | . 2 Melee Attacks 2 | . 2 Impact . | . . Slashing 2 | . 2 Piercing . | . . Sneak Attacks . | . . Combat Hostiles . | . . Follow-up Attacks . | . . Damage Inflicted 889 | 62 827 Guns 414 | 62 352 Cannons . | . . Explosions 475 | . 475 Melee . | . . Ramming . | . . Kinetic 76 | 8 68 Thermal 163 | 54 109 Explosive 435 | . 435 Electromagnetic 215 | . 215 Impact . | . . Slashing . | . . Piercing . | . . Highest Corruption . | . . Average Corruption . | . . Corruption Purged . | . . Corruption Blocked . | . . Overload Shots . | . . Overflow Damage 4 | . 4 Projectiles . | . . Explosions 4 | . 4 Melee . | . . Knockbacks . | . . Impact . | . . Kinetic . | . . Secondary . | . . Self-Inflicted Damage 93 | . 93 Shots 5 | . 5 Rammed . | . . Targets Rammed . | . . Kicked . | . . Crushed . | . . Highest Temperature 177 | 20 177 Average Temperature 50 | 15 50 Received Heat Transfer 147 | . 147 Siege Activations . | . . Martial Activations . | . . Shielding Activations . | . . Robots Disrupted . | . . Combat Hostiles . | . . Robots Corrupted . | . . Combat Hostiles . | . . Parts Fried 1 | . 1 Impact Corruptions . | . . Robots Melted . | . . Combat Hostiles . | . . Parts Melted . | . . Heat Transferred 325 | 125 200 Parts Sabotaged . | . . Parts Stolen . | . . Parts Stripped . | . . Power Chain Reactions 1 | . 1 Alert | -11 -10 ------- Run | Yrd Mat Maximum Alert Level . | . . Low Security (%) 100 | 100 100 Level 1 . | . . Level 2 . | . . Level 3 . | . . Level 4 . | . . Level 5 . | . . High Security . | . . Max Security . | . . Peak Influence 196 | 5 196 Initial . | . . Average 81 | 1 96 Influence Increases 378 | 10 368 Destroy 0b10 Robot/C 220 | . 220 Destroy 0b10 Robot/NC 20 | 10 10 Destroy Leader 44 | . 44 Successful Hack 14 | . 14 Disable Machine 45 | . 45 Destroy Structure 35 | . 35 Influence Decreases 276 | 10 266 Time Decay 216 | 10 206 Lost Part 60 | . 60 Squads Dispatched 1 | . 1 Investigation 1 | . 1 Extermination . | . . Reinforcement . | . . Assault . | . . Garrison . | . . Intercept . | . . Searches Triggered . | . . Construction Impeded . | . . Haulers Reinforced . | . . Active Scanning Responses . | . . Cargo Convoy Interrupts . | . . Stealth | -11 -10 --------- Run | Yrd Mat Distress Signals 1 | . 1 Communications Jammed . | . . Distress Signals . | . . Times Spotted 17 | . 17 Peak Tracking Total 3 | . 3 Tactical Retreats . | . . Traps | -11 -10 ------- Run | Yrd Mat Traps Triggered . | . . Indirectly . | . . Trap Hack Attempts . | . . Triggered . | . . Disarmed . | . . Reprogrammed 4 | . 4 Reused . | . . Traps Extracted . | . . Installed . | . . Triggered . | . . Machines | -11 -10 ---------- Run | Yrd Mat Machines Disabled 3 | . 3 Max in Single Turn 1 | . 1 Machines Repaired . | . . Machines Dismantled . | . . Machines Sabotaged . | . . Overloaded Fab Kills . | . . Hacking | -11 -10 --------- Run | Yrd Mat Machines Accessed 5 | . 5 Terminals 4 | . 4 Fabricators . | . . Repair Stations . | . . Recycling Units 1 | . 1 Scanalyzers . | . . Garrison Access . | . . Total Hacks 16 | . 16 Successful 10 | . 10 Failed 6 | . 6 Catastrophic 2 | . 2 Database Lockouts . | . . Manual 1 | . 1 Terminals 15 | . 15 Fabricators . | . . Repair Stations . | . . Recycling Units 1 | . 1 Scanalyzers . | . . Garrison Access . | . . Terminal Hacks 9 | . 9 Record 6 | . 6 Reprogram Traps 1 | . 1 Registered Components 1 | . 1 Zone Layout 1 | . 1 Fabricator Hacks . | . . Repair Station Hacks . | . . Recycling Unit Hacks 1 | . 1 Report Inventory 1 | . 1 Scanalyzer . | . . Garrison Access Hacks . | . . Unauthorized Hacks . | . . Terminals . | . . Fabricators . | . . Repair Stations . | . . Recycling Units . | . . Scanalyzers . | . . Garrison Access . | . . Data Cores Recovered . | . . Used . | . . Hacking Detections 3 | . 3 Full Trace Events 2 | . 2 Feedback Events . | . . Feedback Blocked . | . . Robot Schematics Acquired . | . . Robots Built . | . . Authchips . | . . Time . | . . Total Robot Build Rating . | . . Part Schematics Acquired . | . . Parts Built . | . . Authchips . | . . Time . | . . Total Part Build Rating . | . . Part Studies Acquired . | . . Parts Repaired . | . . Time . | . . Parts Recycled . | . . Recycled Matter . | . . Retrieved Matter . | . . Retrieved Components . | . . Parts Scanalyzed . | . . Part Schematics Acquired . | . . Parts Damaged . | . . Bothacking | -11 -10 ------------ Run | Yrd Mat Used RIF Installer . | . . Robots Hacked . | . . Non-combat . | . . Combat . | . . Robot Hacks Applied . | . . Relay Couplers Released . | . . Fabnet Peak Effective % . | . . Robots Rewired . | . . Allies Hacked . | . . Hacks Repelled . | . . Allies | -11 -10 -------- Run | Yrd Mat Total Allies . | . . Largest Group . | . . Highest-Rated Group . | . . Highest-Rated Ally . | . . Total Orders . | . . Ally Attacks . | . . Total Damage . | . . Kills . | . . Allies Corrupted . | . . Allies Melted . | . . Intel | -11 -10 ------- Run | Yrd Mat Active Infowar (turns) 501 | 22 479 Sensors 161 | . 161 Seismic 340 | 22 318 Robot Analysis Total . | . . Derelict Logs Recovered . | . . Drone Launches . | . . Drone Recoveries . | . . Exploration | -11 -10 ------------- Run | Yrd Mat Turns Passed 615 | 95 520 Spaces Moved 479 | 68 411 Core 7 | 2 5 Treads . | . . Legs . | . . Wheels 472 | 66 406 Hover . | . . Flight . | . . Fastest Speed 50 | 50 50 Average Speed 91 | 89 92 Slowest Speed 105 | 100 105 Overloaded Moves . | . . Propulsion Burnouts . | . . Robots Hopped . | . . Potential Cave-ins . | . . Cave-ins Triggered . | . . Exploration Rate (%) 37 | 3 72 Regions Visited 1 Branch Regions . Pre-discovered Areas . | . . Known Exits Taken . | . . Unknown Exits Taken 1 | 1 . Scrap Searched . | . . Spaces Dug . | . . Terrain Destroyed 33 | . 33 Melee . | . . Projectile . | . . AOE 33 | . 33 Terrain Rammed . | . . Walls Destroyed . | . . Machines Disabled . | . . Actions | -11 -10 --------- Run | Yrd Mat Total 596 | 89 507 Wait 41 | . 41 Move 478 | 67 411 Hop . | . . Pick Up 13 | 5 8 Fast Attach 14 | 8 6 Attach 2 | . 2 Detach 3 | 1 2 Swap 3 | . 3 Drop 9 | . 9 Fire 31 | 8 23 Melee 2 | . 2 Ram . | . . Kick . | . . Crush . | . . Escape Stasis . | . . Rewire . | . . Trap . | . . Miscellaneous . | . . Route ------- -11/Scrapyard -10/Materials (discovered 3 exits: [*Mat] / [*Min] / [*Sub]) History --------- Turn | Location | Event 6 | -11/Scrapyard | Discovered new exit (range 15) 96 | -11/Scrapyard | Entered Materials 214 | -10/Materials | Discovered new exit (range 13) 320 | -10/Materials | Build established: Mutant 411 | -10/Materials | Discovered new exit (range 16) 542 | -10/Materials | Discovered new exit (range 13) 596 | -10/Materials | Derelicts attacked the area 614 | -10/Materials | Core integrity fell below 50% 614 | -10/Materials | Released all parts (4) 616 | -10/Materials | Core integrity fell below 20% 616 | -10/Materials | Destroyed by S5-EZ4(R) with Subdweller Beam Cannon Last Messages --------------- 00608_ Acquired 5 matter. 00610_ U-05 Engineer lays Concrete. 00610_ Matter Pump disabled. 00610_ Ion Engine destroyed. 00610_ A-02 Transporter destroyed. 00610_ Matter Pump disabled. 00611_ U-05 Engineer lays Concrete. 00611_ Acquired 3 matter. 00612_ U-05 Engineer lays Concrete. 00613_ Wheel destroyed. 00613_ Com. Wheel destroyed. 00613_ U-05 Engineer lays Concrete. 00614_ Released Mining Claw. 00614_ Released Sensor Array. 00614_ Released Hcp. Storage Unit. 00614_ U-05 Engineer lays Concrete. 00615_ K-01 Serf destroyed. 00615_ U-05 Engineer destroyed. 00615_ Machine disabled. 00616_ U-05 Engineer lays Concrete. Map ----- +----------------------------------------------------+ | ????????????####+####????????????##########??????? | | ????????????? #????????????# #??????? | | ?????????????? #????????????#""" #######? | | ??????????????? #????????????#""" #! #? | | ??????????####### #????????????#""" # #? | | ??????????# # #????????????# + !#? | | ??????????# [ # #########+####""" # #? | | ??????????# + ##""" ! # #? | | ??????????# # ##""" ## ##? | | ??????????# # %%% %%% ## ## #?? | | ??????????# ![# %%% %%% ############ #?? | | ??????????# !# %%% %%% #??????????# #?? | | ??????????####### % %= u #?##????????# #?? | | ????????????????# * # #???????# #?? | | ????????????????# % % # ######### ### | | ???????########## R ## """ # ^ | | ???????# R # ## "Y" # | | ???????# R #?? <# # /! | | ???????# """ ! t#????# # /! | | ???????# """ !] ! #????# #^ //! | | ???????# """ = / ! #????# # | | ???????# %!* #????####+### | | ???????# ###### | | ???????+ | | ???????#^ | | ???????# ##;;;; %@ #######+## | | ???????###+##?#####; ;;###### #??# | | ??????????????????##" ; ##????# #??## [ | | ???????????????????#" !| ###?????# #???# | | ???????????????????#|| ! #???????# #??# | | ???????????????????#"" < #???????# #### "" | | ???????????????????#| t#???????# T### | | ???????????????????#"" #???????# ""#?#####/ | | ???????????????????#" k #???????# ###?????# | | ???????###########?####t u########?# #???????# | | ???????# ######% # = #?# ######### | | ???????# # / """ #?# # ## | | ???????# # % # """ #?# # # | | ???????# # a# """ #?# #"" # | | ???????# # #? !#?# #"Y # | | ########= # #? ] #?# #"" | | =+%* + #??####### # # | | ########% # ##########= ######= | | ???????##+######## = [*%= ^ | | ????????# #??????# #= ########* = ^ | | ????????# #??????# # #?###### ^ | | ????????# #??????# #[ [ //#??????# ^ | | ????????# #??????# #[ [[//#??????# ##### | | ????????# #??????# ########??????# #???# | | ????????# #???[??# #?????????????# #???# | +----------------------------------------------------+ Best States ------------- Heat Dissipation 25 Energy Generation 10 Energy Capacity 250 Matter Stores 300 Matter Capacity 300 Sight Range 16 Robot Scan Range 14 Terrain Scan Density 10 Evasion (%) 42 Item Schematics ----------------- None Robot Schematics ------------------ None Fabricated ------------ Nothing Repaired ---------- Nothing Studied --------- None Alien Tech Used ----------------- None Achievements -------------- None Challenges ------------ None Game ------ Seed ChainThrusterReconstructor Manual? 0 Play Time 00:14:28 Cumulative 7.3 hours Start 2025.11.05 @ 20:29:12 End 2025.11.05 @ 20:44:47 Sessions 1 Manual Loads 0 Difficulty Rogue Special Mode None Game No. 10 Rogue 10 Adventurer 0 Explorer 0 Win Type - Total 0 Types 0/0/0/0/0/0/0/0/0/0 Lore% 2 Gallery% 12 Achievement% 10 Wizard Run 0 Options --------- Layout 2 ASCII 0 Keyboard 1 Movement Numpad Keybinds 0 Fullscreen 1 Font 24/Smallcaps Map View 50x44 Zoom Use 12% Tactical HUD 1 Map Filters NONE Filters NONE Steam 1 RUN: 3056d6fd-1723-495a-a6ac-077bb2a0d597